bitfinex/quotes_ETHUSD_20240701
["timestamp","ask_amount","ask_price","bid_price","bid_amount"]
[1719834914334,5.88725,3463.5,3463.2,0.919]
[1719834916468,3.0,3463.5,3463.2,0.919]
[1719834916654,5.3383,3463.6,3463.4,0.919]
[1719834916971,8.22549,3463.6,3463.4,0.919]
[1719834921671,0.05101998,3463.5,3463.4,0.919]
[1719834925675,7.33,3464.0,3463.4,0.919]
[1719834925882,7.33,3464.0,3463.9,0.919]
[1719834926939,10.33,3464.0,3463.9,0.919]
[1719834928874,3.0,3464.0,3463.9,0.919]
[1719834929076,3.0,3464.3,3463.9,0.919]
[1719834929271,3.0,3464.3,3463.7,4.41037]
[1719834929272,3.0,3464.3,3464.1,0.919]
[1719834930282,2.88666,3464.2,3463.5,2.88724]
[1719834930497,3.0,3464.1,3463.9,0.919]
[1719834930648,8.34737,3464.2,3463.9,0.919]
[1719834932590,5.88667,3464.2,3463.9,0.919]
[1719834932755,10.21636,3464.6,3464.1,0.919]
[1719834932952,10.21636,3464.6,3464.5,0.919]
[1719834934492,7.33,3464.6,3464.5,0.919]
[1719834936628,7.37449967,3464.6,3464.5,0.919]
[1719834937000,7.37449967,3464.6,3464.5,5.32871]
[1719834937178,0.04449967,3464.6,3464.5,9.04240658]
[1719834937382,0.144,3465.5,3465.0,2.886]
[1719834937583,0.144,3465.5,3465.4,0.919]
[1719834938783,3.144,3465.5,3465.4,0.919]
[1719834939707,3.144,3465.5,3465.0,2.886]
[1719834939909,3.144,3465.5,3465.4,0.919]
[1719834941191,0.144,3465.5,3465.4,0.919]
[1719834941407,0.144,3465.5,3465.4,1.16323]
[1719834942423,0.144,3465.5,3465.4,4.04889]
[1719834943866,0.144,3465.5,3465.4,1.16323]
[1719834944051,0.144,3465.5,3464.4,2.88644]
[1719834944052,3.02958,3465.5,3464.7,2.88617]
[1719834944204,0.144,3465.5,3465.4,0.919]
[1719834947308,0.144,3465.5,3465.4,1.451819]
[1719834949963,0.144,3465.5,3465.4,2.975119]
[1719834950458,0.144,3465.5,3465.4,5.860779]
[1719834951623,0.18759227,3465.5,3465.4,5.860779]
[1719834951824,0.144,3465.5,3465.4,5.860779]
[1719834952063,0.18759227,3465.5,3465.4,5.860779]
[1719834953068,0.18759227,3465.5,3465.4,8.746439]
[1719834954668,0.144,3465.5,3465.4,8.746439]
[1719834955560,0.18757313,3465.5,3465.4,8.746439]
[1719834959465,0.144,3465.5,3465.4,8.746439]
[1719834960273,0.18798644,3465.5,3465.4,8.746439]
[1719834961679,0.18798644,3465.5,3465.4,9.296439]
[1719834962172,0.144,3465.5,3465.4,9.296439]
[1719834969739,0.144,3465.5,3465.4,7.773139]
[1719834970084,0.18802934,3465.5,3465.4,7.773139]
[1719834971260,0.18802934,3465.5,3465.4,4.337479]
[1719834971641,0.18802934,3465.5,3465.4,1.451819]
[1719834972982,0.18802934,3465.5,3465.4,4.337479]
[1719834973357,0.18802934,3465.5,3465.4,7.223139]
[1719834973535,0.18802934,3465.5,3465.4,7.773139]
[1719834976681,0.18802934,3465.5,3465.4,4.887479]
[1719834978583,0.18802934,3465.5,3465.4,1.451819]
[1719834979981,0.18802934,3465.5,3465.4,0.919]
[1719834979982,5.33435934,3465.5,3465.4,0.919]
[1719834980899,2.44872934,3465.5,3465.4,0.919]
[1719834985303,5.33430934,3465.5,3464.7,2.88623]
[1719834985512,2.88571,3465.4,3464.8,0.288623]
[1719834985663,2.88571,3465.4,3465.3,0.919]
[1719834985868,2.92949213,3465.4,3465.3,0.919]
[1719834986172,2.92949213,3465.4,3464.8,3.174783]
[1719834986392,2.92949213,3465.4,3465.3,0.919]
[1719834987465,2.92949213,3465.4,3464.8,3.174783]
[1719834987661,2.92949213,3465.4,3465.3,0.919]
[1719834992270,0.04378213,3465.4,3465.3,0.919]
[1719834997315,0.04378213,3465.4,3465.3,3.80475]
[1719834997509,0.04378213,3465.4,3465.3,4.47959132]
[1719834999227,0.04378213,3465.4,3465.3,0.67484132]
[1719834999438,0.04378213,3465.4,3465.3,0.919]
[1719835005932,2.31668213,3465.4,3465.3,0.919]
[1719835006139,5.20234213,3465.4,3464.8,0.57874402]
[1719835006312,2.88575,3465.3,3464.8,0.288623]
[1719835006639,0.04217495,3465.3,3465.2,0.919]
[1719835008497,2.92792495,3465.3,3465.2,0.919]
[1719835010598,5.81367495,3465.3,3465.2,0.919]
[1719835012042,5.81367495,3465.3,3464.8,1.5233]
[1719835012043,2.88607,3465.0,3464.6,1.5233]
[1719835012223,2.886,3465.0,3464.9,0.919]
[1719835012428,2.88623,3464.8,3464.4,0.3]
[1719835012667,2.88623,3464.8,3464.7,0.919]
[1719835012817,5.7721,3465.0,3464.7,0.919]
[1719835013145,5.7721,3465.0,3464.9,0.919]
[1719835015354,2.3558,3464.7,3463.9,1.5233]
[1719835015557,2.88633,3464.6,3464.5,0.919]
[1719835015720,5.77271,3464.6,3464.5,0.919]
[1719835016118,2.88655,3464.4,3464.0,0.15233]
[1719835016317,2.88655,3464.4,3464.3,0.919]
[1719835016643,2.8864,3464.6,3464.3,0.919]
[1719835016852,2.8864,3464.6,3464.5,0.919]
[1719835017415,2.88629,3464.7,3464.5,0.919]
[1719835019661,2.88619,3464.8,3464.5,0.919]
[1719835019859,2.88619,3464.8,3464.7,0.919]
[1719835022364,5.3202,3465.0,3464.7,0.919]
[1719835022531,5.3202,3465.0,3464.9,0.919]
[1719835026885,5.36195934,3465.0,3464.9,0.919]
[1719835027246,2.88615,3464.9,3464.4,0.05772147]
[1719835027447,2.88615,3464.9,3464.8,0.919]
[1719835032623,2.88615,3464.9,3464.3,0.3096664]
[1719835032624,2.88629,3464.7,3464.3,0.3096664]
[1719835032791,2.88629,3464.7,3464.6,0.919]
[1719835032999,5.17279,3464.7,3464.6,0.919]
[1719835033202,2.88642,3464.5,3464.3,1.2286664]
[1719835033376,2.8865,3464.4,3464.0,0.15233]
[1719835033712,2.8865,3464.4,3464.3,0.919]
[1719835039621,2.88634,3464.6,3464.3,0.919]
[1719835039923,2.88634,3464.6,3464.0,0.15233]
[1719835039924,2.88648,3464.5,3464.0,0.15233]
[1719835040126,2.88648,3464.5,3464.4,0.919]
[1719835041686,0.04154077,3464.5,3464.4,0.919]
[1719835041885,2.88617,3464.8,3464.4,0.919]
[1719835042115,2.88617,3464.8,3464.7,0.919]
[1719835050559,5.77241,3464.8,3464.7,0.919]
[1719835054051,2.88635,3464.6,3464.5,0.919]
[1719835054449,2.88646,3464.5,3464.1,0.303917]
[1719835054792,2.88646,3464.5,3464.0,0.15233]
[1719835054793,2.8866,3464.3,3464.0,0.15233]
[1719835054943,2.8866,3464.3,3464.2,0.919]
[1719835056675,2.92812781,3464.3,3464.2,0.919]
[1719835059523,2.92812781,3464.3,3463.8,0.29785347]
[1719835059819,2.92812781,3464.3,3463.4,1.5233]
[1719835059820,2.88704,3463.8,3463.4,1.5233]
[1719835060106,5.27637,3464.0,3463.7,0.919]
[1719835060107,2.88693,3463.9,3463.7,0.919]
[1719835060269,2.88693,3463.9,3463.5,0.15233]
[1719835060270,2.88693,3463.9,3463.8,0.919]
[1719835070344,2.88693,3463.9,3463.1,1.81911398]
[1719835070534,2.88717,3463.6,3463.2,0.7594344]
[1719835070764,2.88717,3463.6,3463.5,0.919]
[1719835071651,2.88717,3463.6,3463.2,0.7594344]
[1719835071652,2.88729,3463.5,3463.2,0.7594344]
[1719835071865,5.23959,3463.5,3462.8,4.4111]
[1719835072029,0.04099334,3463.4,3463.2,0.919]
[1719835072234,2.92834334,3463.4,3463.2,0.919]
[1719835078276,0.04099334,3463.4,3462.6,4.69551077]
[1719835078479,0.04099334,3463.4,3462.7,0.31722108]
[1719835078480,2.88757,3463.2,3462.7,0.31722108]
[1719835078785,2.92809594,3463.1,3462.7,0.31722108]
[1719835078937,2.88767,3463.0,3462.7,0.31722108]
[1719835079137,2.88767,3463.0,3462.9,0.919]
[1719835080142,2.88757,3463.2,3462.9,0.919]
[1719835080447,2.88757,3463.2,3463.1,0.919]
[1719835086554,2.92815989,3463.2,3463.1,0.919]
[1719835087782,0.04058989,3463.2,3463.1,0.919]
[1719835088091,2.88742,3463.3,3463.1,0.919]
[1719835088255,0.04058989,3463.2,3463.1,0.919]
[1719835088755,0.0405642,3463.2,3463.1,0.919]
[1719835088936,2.88742,3463.3,3463.1,0.919]
[1719835089366,0.0405642,3463.2,3463.1,0.919]
[1719835089586,2.88742,3463.3,3463.1,0.919]
[1719835089792,0.0405642,3463.2,3463.1,0.919]
[1719835089956,2.88742,3463.3,3463.1,0.919]
[1719835090157,0.0405642,3463.2,3463.1,0.919]
[1719835090480,5.77491,3463.3,3463.1,0.919]
[1719835090794,2.88758,3463.1,3462.9,0.919]
[1719835091010,0.04047125,3463.0,3462.9,0.919]
[1719835093490,2.92813125,3463.0,3462.9,0.919]
[1719835094989,0.04047125,3463.0,3462.9,0.919]
[1719835095191,5.28384,3463.2,3462.9,0.919]
[1719835095403,2.88766,3463.0,3462.9,0.919]
[1719835095580,2.92795794,3463.0,3462.9,0.919]
[1719835100902,0.04029794,3463.0,3462.9,0.919]
[1719835101250,2.88758,3463.1,3462.9,0.919]
[1719835101459,2.88758,3463.1,3462.6,2.88798]
[1719835101460,0.04033868,3463.0,3462.6,2.88798]
[1719835101755,0.04033868,3463.0,3462.9,0.919]
[1719835104454,2.88743,3463.3,3462.9,0.919]
[1719835104656,2.88743,3463.3,3463.2,0.919]
[1719835108169,2.16111662,3468.5,3463.2,0.919]
[1719835108170,2.3074,3463.7,3463.2,0.919]
[1719835108365,2.88718,3463.6,3463.5,0.919]
[1719835108968,5.88718,3463.6,3463.5,0.919]
[1719835111668,2.88725,3463.5,3463.3,0.919]
[1719835111979,5.88718,3463.6,3463.3,0.919]
[1719835111980,2.88734,3463.4,3463.3,0.919]
[1719835112222,2.88734,3463.4,3462.8,2.88776]
[1719835112223,2.3971,3463.3,3463.0,0.919]
[1719835114511,2.3971,3463.3,3463.2,0.919]
[1719835115412,2.34,3463.3,3462.7,2.8879]
[1719835115565,2.88752,3463.2,3463.0,0.919]
[1719835115763,2.88752,3463.2,3462.7,2.8879]
[1719835116070,2.88752,3463.2,3462.9,0.919]
[1719835116270,2.88752,3463.2,3462.6,2.88798]
[1719835116582,0.03935855,3463.1,3462.9,0.919]
[1719835118116,0.03935855,3463.1,3462.6,3.61792]
[1719835118117,2.88767,3463.0,3462.6,0.72994]
[1719835118329,2.88767,3463.0,3462.9,0.919]
[1719835118980,2.88767,3463.0,3462.4,4.41142]
[1719835119181,2.88767,3463.0,3462.9,0.919]
[1719835124722,2.88767,3463.0,3462.2,3.17928783]
[1719835124950,2.88775,3462.9,3462.8,0.919]
[1719835125153,2.88767,3463.0,3462.2,3.17928783]
[1719835125154,2.88784,3462.8,3462.2,3.17928783]
[1719835125364,2.88784,3462.8,3462.7,0.919]
[1719835126064,5.77542,3463.0,3462.7,0.919]
[1719835126224,2.2964,3462.9,3462.3,0.75910578]
[1719835126427,2.2964,3462.9,3462.4,0.54617336]
[1719835126632,2.888,3462.6,3462.5,0.919]
[1719835129318,2.888,3462.6,3462.0,2.88848]
[1719835129511,2.888,3462.6,3462.5,0.919]
[1719835129936,2.888,3462.6,3462.1,2.8884]
[1719835130142,2.888,3462.6,3462.5,0.919]
[1719835131619,2.92698071,3462.6,3462.5,0.919]
[1719835132286,0.03898071,3462.6,3462.5,0.919]
[1719835132683,2.88789,3462.8,3462.5,0.919]
[1719835132840,2.88789,3462.8,3462.7,0.919]
[1719835134035,2.4843,3463.1,3462.7,0.919]
[1719835134036,5.3719,3463.1,3462.7,0.919]
[1719835134238,5.3719,3463.1,3463.0,0.919]
[1719835138954,5.3719,3463.1,3462.8,0.919]
[1719835141697,8.25956,3463.1,3462.8,0.919]
[1719835142186,5.3719,3463.1,3462.8,0.919]
[1719835142985,2.88767,3463.0,3462.8,0.919]
[1719835143485,5.3719,3463.1,3462.8,0.919]
[1719835143486,2.4843,3463.1,3462.8,0.919]
[1719835143847,5.3719,3463.1,3462.8,0.919]
[1719835144344,2.4843,3463.1,3462.8,0.919]
[1719835144587,2.8875,3463.2,3462.8,0.919]
[1719835145583,2.88759,3463.1,3462.8,0.919]
[1719835145746,2.8875,3463.2,3462.8,0.919]
[1719835145747,2.88767,3463.0,3462.8,0.919]
[1719835146648,0.03733771,3462.9,3462.8,0.919]
[1719835147043,2.28923771,3462.9,3462.6,0.919]
[1719835147471,2.88787,3462.8,3462.1,4.4117]
[1719835147698,2.88797,3462.7,3462.4,0.919]
[1719835147850,2.92521474,3462.7,3462.4,0.919]
[1719835148266,2.88808,3462.5,3461.9,4.41183]
[1719835148451,2.88808,3462.5,3462.2,0.919]
[1719835148649,2.88786,3462.8,3462.4,0.919]
[1719835148885,2.888,3462.6,3462.4,0.919]
[1719835150403,2.3294,3462.5,3462.3,0.919]
[1719835150708,5.21753,3462.5,3462.3,0.919]
[1719835151516,2.88793,3462.7,3462.4,0.919]
[1719835151668,5.77592,3462.7,3462.4,0.919]
[1719835151870,2.888,3462.6,3462.4,0.919]
[1719835154019,2.88808,3462.5,3462.4,0.919]
[1719835155797,2.88793,3462.7,3462.4,0.919]
[1719835156002,5.77592,3462.7,3462.4,0.919]
[1719835156216,2.88803,3462.6,3462.4,0.919]
[1719835157174,2.88793,3462.7,3462.4,0.919]
[1719835157620,2.88793,3462.7,3462.6,0.919]
[1719835160605,2.2643,3462.8,3462.6,0.919]
[1719835160811,2.88767,3463.0,3462.6,0.919]
[1719835161016,2.88767,3463.0,3462.4,1.5233]
[1719835161017,2.88775,3462.9,3462.8,0.919]
[1719835161182,2.88775,3462.9,3462.6,0.919]
[1719835161686,0.036589,3462.8,3462.6,0.919]
[1719835163184,2.88767,3463.0,3462.6,0.919]
[1719835163580,0.03663548,3462.9,3462.6,0.919]
[1719835166834,0.03663548,3462.9,3462.8,0.919]
[1719835167138,2.2772,3463.1,3462.8,3.80683]
[1719835167433,2.4079,3463.3,3463.0,0.919]
[1719835167600,8.29531,3463.3,3463.0,0.919]
[1719835170219,2.88758,3463.1,3462.8,0.919]
[1719835172047,2.88758,3463.1,3462.5,4.41137]
[1719835172231,2.88758,3463.1,3462.8,0.919]
[1719835172429,8.29531,3463.3,3462.8,0.919]
[1719835172639,8.29531,3463.3,3463.0,0.919]
[1719835172799,2.8875,3463.2,3463.0,0.919]
[1719835173146,8.29534,3463.3,3463.0,0.919]
[1719835176749,0.03566732,3463.2,3463.0,0.919]
[1719835177112,8.29534,3463.3,3463.0,0.919]
[1719835177356,0.03572463,3463.1,3463.0,0.919]
[1719835177561,8.29534,3463.3,3463.0,0.919]
[1719835177850,0.03572465,3463.1,3463.0,2.88766]
[1719835178145,0.03572141,3463.1,3463.0,3.80666]
[1719835178652,3.0,3463.5,3463.0,3.80666]
[1719835178862,0.03569336,3463.1,3463.0,2.88766]
[1719835179020,0.03569336,3463.1,3463.0,4.536539]
[1719835179213,0.03569498,3463.1,3463.0,4.536539]
[1719835179854,3.0,3463.5,3463.0,4.536539]
[1719835180055,3.0,3463.5,3463.4,0.919]
[1719835180758,5.88725,3463.5,3463.4,0.919]
[1719835182421,3.0,3463.5,3463.4,0.919]
[1719835182654,8.27579,3463.7,3463.4,0.919]
[1719835182864,2.88717,3463.6,3463.4,0.919]
[1719835183028,3.0,3463.5,3463.4,0.919]
[1719835186754,2.353,3463.6,3463.4,0.919]
[1719835187813,5.24017,3463.6,3463.4,0.919]
[1719835188013,3.0,3463.5,3463.4,0.919]
[1719835188216,5.353,3463.6,3463.4,0.919]
[1719835188715,3.0,3463.6,3463.4,0.919]
[1719835188923,2.88717,3463.6,3463.0,2.88763]
[1719835189129,3.0,3463.5,3463.3,0.919]
[1719835190861,5.88725,3463.5,3463.3,0.919]
[1719835191973,0.03574592,3463.4,3463.3,0.919]
[1719835193338,5.88718,3463.6,3463.3,0.919]
[1719835193675,5.88718,3463.6,3463.5,0.919]
[1719835194472,2.4722,3463.8,3463.5,0.919]
[1719835194683,2.88695,3463.9,3463.7,0.919]
[1719835194864,3.0,3463.8,3463.7,0.919]
[1719835196334,2.88681,3464.1,3463.7,0.919]
[1719835196578,2.88681,3464.1,3464.0,0.919]
[1719835196885,5.88681,3464.1,3464.0,0.919]
[1719835197060,2.88688,3464.0,3463.9,0.919]
[1719835198339,2.289,3463.9,3463.4,2.88733]
[1719835198541,5.17591,3463.9,3463.7,0.919]
[1719835200561,5.17591,3463.9,3463.3,2.8874]
[1719835200760,5.17591,3463.9,3463.8,0.919]
[1719835200964,2.88703,3463.8,3463.1,2.88752]
[1719835201274,2.88703,3463.8,3463.5,0.919]
[1719835201487,2.88703,3463.8,3463.0,2.88759]
[1719835201651,3.0,3464.1,3463.2,0.919]
[1719835201652,2.88732,3463.5,3463.2,0.919]
[1719835201848,5.20492,3463.5,3463.2,0.919]
[1719835202066,5.20492,3463.5,3462.5,2.88805]
[1719835202067,2.88747,3463.3,3462.5,2.88805]
[1719835202389,2.88747,3463.3,3463.0,0.919]
[1719835202390,2.88755,3463.2,3463.0,0.919]
[1719835202742,2.88758,3463.1,3463.0,0.919]
[1719835202948,2.88758,3463.1,3462.4,4.41139]
[1719835203281,2.88758,3463.1,3463.0,0.919]
[1719835203282,2.88765,3463.1,3463.0,0.919]
[1719835203491,5.21295,3463.1,3463.0,0.919]
[1719835204985,5.21295,3463.1,3462.3,2.88821]
[1719835205180,2.88776,3462.9,3462.4,0.729992]
[1719835205385,2.88776,3462.9,3462.8,0.919]
[1719835205745,5.21295,3463.1,3462.8,0.919]
[1719835205746,8.10061,3463.1,3462.8,0.919]
[1719835205973,2.88768,3463.0,3462.4,3.618082]
[1719835206335,5.21295,3463.1,3462.4,3.618082]
[1719835206336,2.88776,3462.9,3462.4,3.618082]
[1719835206547,2.88776,3462.9,3462.4,0.729992]
[1719835206687,2.88792,3462.7,3462.1,4.41165]
[1719835206886,2.88776,3462.9,3462.6,0.919]
[1719835206887,5.77558,3462.9,3462.6,0.919]
[1719835207136,2.88776,3462.9,3462.8,0.919]
[1719835207298,2.88785,3462.8,3462.2,2.88832]
[1719835207518,2.88785,3462.8,3462.1,1.5233]
[1719835207700,2.88785,3462.8,3462.0,2.88844]
[1719835208013,2.88785,3462.8,3462.7,0.919]
[1719835208212,2.88771,3463.0,3462.7,0.919]
[1719835208434,2.88771,3463.0,3462.9,0.919]
[1719835210323,2.3253,3463.1,3462.9,0.919]
[1719835210531,3.0,3463.1,3462.9,0.919]
[1719835210733,2.88718,3463.6,3462.9,0.919]
[1719835211025,5.38243,3463.8,3463.5,0.919]
[1719835211339,5.38243,3463.8,3463.7,0.919]
[1719835211340,6.20933,3463.8,3463.7,0.919]
[1719835211695,3.71393,3463.8,3463.7,0.919]
[1719835211886,0.82693,3463.8,3463.7,0.919]
[1719835212139,2.88687,3464.0,3463.7,0.919]
[1719835213133,2.4826,3464.1,3463.7,0.919]
[1719835213134,2.88692,3463.9,3463.7,0.919]
[1719835214207,2.887,3463.8,3463.7,0.919]
[1719835214420,2.887,3463.8,3463.5,0.919]
[1719835214618,2.88692,3463.9,3463.5,0.919]
[1719835214619,2.88708,3463.7,3463.5,0.919]
[1719835215140,2.88708,3463.7,3463.3,0.919]
[1719835215294,2.88726,3463.5,3463.3,0.919]
[1719835215496,2.88726,3463.5,3462.7,4.41116]
[1719835215806,2.88743,3463.3,3463.2,0.919]
[1719835216496,2.88725,3463.6,3463.2,0.919]
[1719835216839,2.88725,3463.5,3463.4,0.919]
[1719835217407,2.88738,3463.4,3463.3,0.919]
[1719835217749,2.92307774,3463.4,3463.3,0.919]
[1719835219944,2.92307774,3463.4,3462.4,4.41144]
[1719835219945,2.88745,3463.3,3462.4,4.41144]
[1719835220113,5.77527,3463.1,3463.0,0.919]
[1719835220315,2.88782,3462.9,3462.8,0.919]
[1719835220612,0.03448404,3462.9,3462.8,0.919]
[1719835221161,0.03448404,3462.9,3462.8,3.80683]
[1719835221162,0.03410772,3462.9,3462.8,3.80683]
[1719835221372,3.0,3463.6,3462.8,4.69216282]
[1719835221532,8.28475,3463.9,3463.4,0.919]
[1719835221721,8.28475,3463.9,3463.6,0.919]
[1719835221722,2.88711,3463.7,3463.6,0.919]
[1719835222064,5.28475,3463.9,3463.6,0.919]
[1719835222218,2.88676,3464.1,3463.8,0.919]
[1719835222417,3.0,3464.0,3463.5,2.8872]
[1719835222613,2.88676,3464.1,3463.9,0.919]
[1719835223158,2.88659,3464.3,3463.9,0.919]
[1719835223356,2.88659,3464.3,3464.2,0.919]
[1719835223737,2.88644,3464.5,3464.2,0.919]
[1719835223920,2.88644,3464.5,3464.4,0.919]
[1719835224257,3.710432,3464.5,3464.4,0.919]
[1719835225168,6.710432,3464.5,3464.4,0.919]
[1719835225375,5.35339,3464.8,3464.4,0.919]
[1719835225376,2.8863,3464.7,3464.4,0.919]
[1719835225577,3.0,3464.6,3464.4,0.919]
[1719835225857,3.0,3464.6,3463.9,2.208]
[1719835226397,3.0,3464.7,3464.0,2.88683]
[1719835226525,2.88633,3464.6,3464.0,2.88683]
[1719835228162,2.88609,3464.9,3464.0,3.684982]
[1719835228330,2.88609,3464.9,3464.3,2.88652]
[1719835228525,3.18722518,3464.9,3464.2,2.88664]
[1719835228721,2.88617,3464.8,3464.2,2.88664]
[1719835229162,2.88625,3464.7,3464.1,2.88673]
[1719835229964,3.18726518,3464.9,3464.2,2.88664]
[1719835230774,3.18726518,3464.9,3464.4,2.88645]
[1719835230775,0.30113518,3464.9,3464.4,2.88645]
[1719835230961,0.0354891,3464.8,3464.4,2.88645]
[1719835231121,5.88597,3465.1,3464.4,2.88645]
[1719835231325,0.03558194,3465.0,3464.6,2.8863]
[1719835233563,0.03558194,3465.0,3464.6,3.684375]
[1719835236583,2.92158194,3465.0,3464.6,0.798075]
[1719835236721,0.03558194,3465.0,3464.6,0.798075]
[1719835239260,0.03558194,3465.0,3464.7,5.09422]
[1719835239459,0.03558194,3465.0,3464.7,2.208]
[1719835239784,0.03410348,3464.9,3464.7,2.208]
[1719835240404,0.03405706,3464.8,3464.7,2.208]
[1719835240573,0.03405706,3464.8,3464.7,5.09425]
[1719835240891,2.88585,3465.2,3464.7,5.09425]
[1719835241109,0.03405706,3464.8,3464.7,5.09425]
[1719835241396,0.03405706,3464.8,3464.7,6.044639]
[1719835241567,2.88572,3465.4,3464.7,6.044639]
[1719835241776,3.03428915,3465.3,3464.7,6.044639]
[1719835241966,5.92003915,3465.3,3464.7,6.044639]
[1719835242395,0.03428915,3465.3,3464.7,6.044639]
[1719835242700,0.03428915,3465.3,3464.9,2.88607]
[1719835242899,5.88567,3465.4,3464.9,2.88607]
[1719835243074,0.03424274,3465.2,3464.9,2.88607]
[1719835243400,5.88567,3465.4,3464.9,2.88607]
[1719835243401,0.03419632,3465.1,3464.9,2.88607]
[1719835243762,0.144,3465.5,3464.9,2.88607]
[1719835243956,0.144,3465.5,3464.9,3.75978039]
[1719835243957,0.03433556,3465.4,3464.9,3.75978039]
[1719835244276,0.03433556,3465.4,3465.1,2.208]
[1719835244659,0.03433556,3465.4,3465.1,5.0939]
[1719835246406,0.03433556,3465.4,3465.2,2.8858]
[1719835246902,0.03433556,3465.4,3465.1,5.0939]
[1719835246903,0.03433556,3465.4,3465.3,2.88575]
[1719835247070,0.03433556,3465.4,3465.3,3.836045]
[1719835247905,0.03433556,3465.4,3465.3,4.755045]
[1719835248655,0.03433556,3465.4,3465.3,7.640795]
[1719835250777,0.03433556,3465.4,3465.3,9.164095]
[1719835251776,0.03433556,3465.4,3465.3,6.278345]
[1719835252286,0.03433556,3465.4,3465.3,4.755045]
[1719835254072,0.03433556,3465.4,3465.3,1.869295]
[1719835254988,0.03433556,3465.4,3465.3,4.755045]
[1719835256508,0.03433556,3465.4,3465.3,7.640795]
[1719835257260,2.47953556,3465.4,3465.3,7.640795]
[1719835257463,0.03433556,3465.4,3465.3,0.950295]
[1719835257684,0.03433556,3465.4,3465.3,0.919]
[1719835259193,2.8859,3465.2,3464.6,2.88628]
[1719835259397,2.8859,3465.2,3465.0,0.919]
[1719835259607,0.03427233,3465.1,3465.0,0.919]
[1719835259979,2.4484,3465.3,3465.0,0.919]
[1719835260218,2.4484,3465.3,3465.2,0.919]
[1719835260507,2.4484,3465.3,3464.3,4.4098]
[1719835260508,2.88586,3465.2,3464.3,4.4098]
[1719835260691,2.88605,3465.0,3464.4,3.32746]
[1719835260893,2.88585,3465.2,3464.9,0.919]
[1719835261107,2.88585,3465.2,3463.9,2.88688]
[1719835261108,2.278,3465.1,3463.8,1.8158002]
[1719835261417,2.278,3465.1,3464.6,0.919]
[1719835261418,2.88612,3464.9,3464.6,0.919]
[1719835261911,2.88612,3464.9,3464.3,2.88658]
[1719835263519,2.88617,3464.8,3464.3,2.88658]
[1719835264425,2.88642,3464.5,3464.1,2.207]
[1719835264567,2.88659,3464.3,3463.9,0.18158002]
[1719835265506,2.3192,3464.4,3464.0,0.816264]
[1719835265683,2.88665,3464.3,3463.9,0.18158002]
[1719835266531,2.88665,3464.3,3463.5,2.88722]
[1719835266704,2.88662,3464.3,3463.5,2.88722]
[1719835267113,2.88662,3464.3,3463.6,2.88715]
[1719835267269,2.88662,3464.3,3463.7,2.88708]
[1719835267622,0.0343842,3464.2,3463.8,0.57743]
[1719835267987,2.3192,3464.4,3464.0,2.88683]
[1719835268185,5.88591,3465.2,3464.0,2.88683]
[1719835268186,0.03443062,3464.3,3464.0,2.88683]
[1719835268392,2.88634,3464.6,3464.0,2.88683]
[1719835268701,2.2599,3464.7,3464.3,2.88655]
[1719835268919,0.03452616,3464.6,3464.3,2.88655]
[1719835269119,0.03452616,3464.6,3464.1,5.72879151]
[1719835269417,2.88613,3464.9,3464.3,2.88657]
[1719835269917,0.03460769,3464.8,3464.3,2.88657]
[1719835270124,2.92077769,3464.8,3464.4,0.86153615]
[1719835271987,0.03460769,3464.8,3464.4,0.86153615]
[1719835272222,2.319,3465.0,3464.6,2.88631]
[1719835272429,0.03459443,3464.7,3464.6,2.88631]
[1719835272590,2.319,3465.0,3464.6,2.88631]
[1719835272797,0.03468725,3464.9,3464.6,3.26686692]
[1719835273134,0.03468725,3464.9,3464.6,0.38055692]
[1719835273300,3.0,3465.3,3464.4,1.58102302]
[1719835273486,0.03483371,3465.2,3464.4,1.58102302]
[1719835274503,0.03483371,3465.2,3464.8,2.88612]
[1719835274731,0.03483371,3465.2,3465.0,2.88597]
[1719835275045,2.32,3465.4,3465.0,2.88597]
[1719835275046,0.03497552,3465.1,3465.0,2.88597]
[1719835275334,2.32,3465.4,3464.8,2.94381622]
[1719835275550,0.03506831,3465.3,3464.9,0.58301062]
[1719835275697,0.03506831,3465.3,3464.5,2.207]
[1719835275698,2.88597,3465.1,3464.5,2.207]
[1719835275892,0.03492913,3465.0,3464.5,5.09341]
[1719835276332,0.03492913,3465.0,3464.5,2.88641]
[1719835278320,2.92092913,3465.0,3464.5,2.88641]
[1719835278518,2.92092913,3465.0,3464.6,0.577298]
[1719835278732,2.88615,3464.9,3464.6,0.577298]
[1719835278934,0.03492481,3464.8,3464.6,0.577298]
[1719835279252,2.88584,3465.2,3464.6,2.88627]
[1719835279435,0.03487636,3464.7,3464.6,2.88627]
[1719835279748,2.88605,3465.0,3464.4,2.88642]
[1719835280112,2.88605,3465.0,3464.5,2.88641]
[1719835280326,0.03418693,3464.9,3464.5,2.88641]
[1719835280653,0.03418693,3464.9,3464.6,0.288641]
[1719835282047,0.03418693,3464.9,3464.6,3.174901]
[1719835282262,0.03418693,3464.9,3464.7,2.88623]